Workbook

Sheet Topics
A1: Highline Excel 2013 Class Video 50: Financial Functions: PMT, RATE, NPER and FV 12 Examples
A3: Num. | B3: Topics:
A4: 1 | B4: PMT function from Borrower point of view
A5: 2 | B5: PMT function from Lender point of view
A6: 3 | B6: PMT function with Balloon payment at end
A7: 4 | B7: PMT function when payments don't start for 1 year
A8: 5 | B8: RATE function: Adjusted APR when there are Points and Fees
A9: 6 | B9: PMT and other formulas: Create an Amortization Table
A10: 7 | B10: CUMIPMT function: to calculate total interest over the life of a loan
A11: 8 | B11: NPER function: How long to pay off your Credit Card Bill
A12: 9 | B12: FV to estimate what you will have at retirement
A13: 10 | B13: PMT to estimate how much you can withdraw each month after you retire
A14: 11 | B14: Calculate how total you can withdraw after retirement and how much you actually deposited while saving.
A15: 12 | B15: PMT to calculate how much you have to save each month to have a million dollars when you retire.

Sheet Notes
B1: PMT function:
B2: PMT function calculates the period payment for a loan (For the Borrower or the Lender).
B3: Each pmt must be the same. | H3: Periodic PMT Definition:
B4: Time period between each pmt must be the same. | H4: Each pmt must be the same.
B5: Interest rate must remain constant. | H5: Time period between each pmt must be the same.
B6: PMT function arguments:
B7: rate = period rate (month, quarter, yearly, etc.)
B8: nper = total number of periods
B9: pv = amount of loan on the day it is issued (present value of future cash flows)
B10: fv = value of loan on last day (balloon payment)
B11: type =
B12: End = omitted = 1 = payment at end of period
B13: Begin = 0 = payment at beginning of period
B15: Cash Flow matters in Finance.
B16: Cash going out of the wallet is negative.
B17: Cash coming into the wallet is positive.
B18: PMT function Cash Flows:
B19: For the borrow the PV is positive, the PMT is negative, and the FV is negative.
B20: For the Lender the PV is negative, the PMT is positive, and the FV is positive.
B21: Be consistent with your unit of time!
B22: If you are calculating monthly payment, you need monthly interest rate and total number of months!
B23: The period can be monthly, quarterly, yearly or any other length.
B25: FV function:
B26: Calculates the future value of an investment, for either a lump sum or a savings plan
B27: Interest rate must remain constant.
B28: Each pmt must be the same.
B29: Time period between each pmt must be the same.
B30: FV arguments:
B31: rate = period rate (month, quarter, yearly, etc.)
B32: nper = total number of periods
B33: pmt = equal periodic payments
B34: pv = amount of loan on the day it is issued (present value of future cash flows)
B35: type =
B36: End = omitted = 1 = payment at end of period
B37: Begin = 0 = payment at beginning of period
B39: RATE function:
B40: Calculates the period rate
B41: Each pmt must be the same.
B42: Time period between each pmt must be the same.
B43: Interest rate will remain constant.
B44: RATE arguments:
B45: nper = total number of periods
B46: pmt = equal periodic payments
B47: pv = amount of loan on the day it is issued (present value of future cash flows)
B48: fv = value of loan on last day (balloon payment)
B49: type =
B50: End = omitted = 1 = payment at end of period
B51: Begin = 0 = payment at beginning of period
B53: NPER function:
B54: Calculates the total number of periods
B55: Each pmt must be the same.
B56: Time period between each PMT must be the same.
B57: Interest rate must remain constant.
B58: NPER arguments:
B59: rate = period rate (month, quarter, yearly, etc.)
B60: pmt = equal periodic payments
B61: pv = amount of loan on the day it is issued (present value of future cash flows)
B62: fv = value of loan on last day (balloon payment)
B63: type =
B64: End = omitted = 1 = payment at end of period
B65: Begin = 0 = payment at beginning of period

Sheet PMT
A1: 1 | B1: PMT function from Borrower point of view
B2: Price of Car | C2: 34799 | D2: Annual Interest Rate | E2: 0.065
B3: Down Payment | C3: 10000 | D3: Monthly Interest Rate
B4: Loan Amount | D4: Years for Loan | E4: 5
B5: PMT end of period | D5: Total Months
B6: Monthly Payment | C6: =-C4/((1-(1+E2/E6)^(-E4*E6))/(E2/E6)) -> 0 | D6: Periods per Year | E6: 12
B7: PMT begin of period | D7: Type, 0 = End, 1 = Beg | E7: 1
A9: 2 | B9: PMT function from Lender point of view
B10: Price of Car | C10: =C2 -> 34799 | D10: Annual Interest Rate | E10: =E2 -> 0.065
B11: Down Payment | C11: =C3 -> 10000 | D11: Monthly Interest Rate
B12: Loan Amount | D12: Years for Loan | E12: =E4 -> 5
B13: Monthly Payment | D13: Total Months
B14: Monthly Payment | C14: =(C12/((1-(1+E10/E14)^(-E12*E14))/(E10/E14))) -> 0 | D14: Periods per Year | E14: =E6 -> 12
A16: 3 | B16: PMT function with Balloon payment at end | G16: Borrower point of view
B17: Price of Car | C17: 50000 | D17: Annual Interest Rate | E17: 0.0525
B18: Down Payment | C18: 5000 | D18: Monthly Interest Rate
B19: Loan Amount | C19: =C17-C18 -> 45000 | D19: Years for Loan | E19: 3
B20: Balloon Payment | C20: -5000 | D20: Total Months
B21: Monthly Payment | D21: Periods per Year | E21: 12
A23: 4 | B23: PMT function when payments don't start for 1 year | G23: Borrower point of view
B24: Loan Amount | C24: 1000000 | D24: Annual Interest Rate | E24: 0.085
B25: Years payment is put off | C25: 1 | D25: Period Interest Rate
B26: FV after 1 year | D26: Years for Loan | E26: 6
B27: Period Payment | D27: Total Periods
B28: Period Payment | C28: =PMT(E25,(E26-C25)*E28,FV(E25,C25*E28,,-C24)) -> -50000 | D28: Periods per Year | E28: 4
A30: 5 | B30: Adjusted APR when there are Points and Fees | G30: Borrower point of view
B31: Loan Amount | C31: 200000 | D31: Years for Loan | E31: 30
B32: Annual Interest Rate | C32: 0.05 | D32: Periods per Year | E32: 12
B33: Period Interest Rate | D33: Points | E33: 0.01 | G33: 1
B34: Total Periods | D34: Fees | E34: 750
B35: PMT
B36: Actual Cash Received
B37: Period Rate | E37: Ctrl + Shift + ~ `
B38: Adjusted APR

Sheet PMT(an)
A1: 1 | B1: PMT function from Borrower point of view
B2: Price of Car | C2: 34799 | D2: Annual Interest Rate | E2: 0.065
B3: Down Payment | C3: 10000 | D3: Monthly Interest Rate | E3: =E2/E6 -> 0.005416666667
B4: Loan Amount | C4: =C2-C3 -> 24799 | D4: Years for Loan | E4: 5
B5: PMT end of period | C5: =PMT(E3,E5,C4) -> -485.2209097 | D5: Total Months | E5: =E4*E6 -> 60
B6: Monthly Payment | C6: =-C4/((1-(1+E2/E6)^(-E4*E6))/(E2/E6)) -> -485.2209097 | D6: Periods per Year | E6: 12
B7: PMT begin of period | C7: =PMT(E3,E5,C4,,1) -> -482.6067896 | D7: Type, 0 = End, 1 = Beg | E7: 1
A9: 2 | B9: PMT function from Lender point of view
B10: Price of Car | C10: =C2 -> 34799 | D10: Annual Interest Rate | E10: =E2 -> 0.065
B11: Down Payment | C11: =C3 -> 10000 | D11: Monthly Interest Rate | E11: =E10/E14 -> 0.005416666667
B12: Loan Amount | C12: =C10-C11 -> 24799 | D12: Years for Loan | E12: =E4 -> 5
B13: Monthly Payment | C13: =PMT(E11,E13,-C12) -> 485.2209097 | D13: Total Months | E13: =E12*E14 -> 60
B14: Monthly Payment | C14: =(C12/((1-(1+E10/E14)^(-E12*E14))/(E10/E14))) -> 485.2209097 | D14: Periods per Year | E14: =E6 -> 12
A16: 3 | B16: PMT function with Balloon payment at end
B17: Price of Car | C17: 50000 | D17: Annual Interest Rate | E17: 0.0525
B18: Down Payment | C18: 5000 | D18: Monthly Interest Rate | E18: =E17/E21 -> 0.004375
B19: Loan Amount | C19: =C17-C18 -> 45000 | D19: Years for Loan | E19: 3
B20: Balloon Payment | C20: -5000 | D20: Total Months | E20: =E19*E21 -> 36
B21: Monthly Payment | C21: =PMT(E18,E20,C19,C20) -> -1225.205821 | D21: Periods per Year | E21: 12
A23: 4 | B23: PMT function when payments don't start for 1 year
B24: Loan Amount | C24: 1000000 | D24: Annual Interest Rate | E24: 0.085
B25: Years payment is put off | C25: 1 | D25: Period Interest Rate | E25: =E24/E28 -> 0.02125
B26: FV after 1 year | C26: =FV(E25,C25*E28,,C24) -> -1087747.962 | D26: Years for Loan | E26: 6 | G26: =C24*(1+E25)^(C25*E28) -> 1087747.962
B27: Period Payment | C27: =PMT(E25,(E26-C25)*E28,-C26) -> -67328.25019 | D27: Total Periods | E27: =E26*E28 -> 24
B28: Period Payment | C28: =PMT(E25,(E26-C25)*E28,FV(E25,C25*E28,,-C24)) -> -67328.25019 | D28: Periods per Year | E28: 4 | H28: check | I28: =C24*(1+E25)^E28 -> 1087747.962
A30: 5 | B30: Adjusted APR when there are Points and Fees
B31: Loan Amount | C31: 200000 | D31: Years for Loan | E31: 30
B32: Annual Interest Rate | C32: 0.05 | D32: Periods per Year | E32: 12
B33: Period Interest Rate | C33: =C32/E32 -> 0.004166666667 | D33: Points | E33: 0.01 | G33: 1
B34: Total Periods | C34: =E31*E32 -> 360 | D34: Fees | E34: 750
B35: PMT | C35: =PMT(C33,C34,C31) -> -1073.643246
B36: Actual Cash Received | C36: =C31*(1-E33)-E34 -> 197250
B37: Period Rate | C37: =RATE(C34,C35,C36) -> 0.004268379777 | E37: Ctrl + Shift + ~ `
B38: Adjusted APR | C38: =C37*E32 -> 0.05122055732

Sheet Amort
A1: Loan Amount | B1: 200000 | D1: Total Interest | E1: Total Interest
A2: Annual Interest Rate | B2: 0.05
A3: Years for Loan | B3: 30
A4: Periods per Year | B4: 12
A5: Period Interest Rate
A6: Total Periods
A7: PMT
A9: Periods | B9: PMT | C9: Period Interest | D9: Loan Reduction | E9: Balance

Sheet Amort (an)
A1: Loan Amount | B1: 200000 | D1: Total Interest | E1: Total Interest
A2: Annual Interest Rate | B2: 0.05 | D2: =SUM(C11:C370) -> 186511.5686 | E2: =CUMIPMT(B5,B6,B1,1,B6,0) -> -186511.5686
A3: Years for Loan | B3: 30
A4: Periods per Year | B4: 12
A5: Period Interest Rate | B5: =B2/B4 -> 0.004166666667
A6: Total Periods | B6: =B3*B4 -> 360
A7: PMT | B7: =PMT(B5,B6,B1) -> -1073.643246
A9: Periods | B9: PMT | C9: Period Interest | D9: Loan Reduction | E9: Balance
A10: 0 | E10: =B1 -> 200000
A11: 1 | B11: =-B$7 -> 1073.643246 | C11: =E10*B$5 -> 833.3333333 | D11: =B11-C11 -> 240.3099127 | E11: =E10-D11 -> 199759.6901
A12: 2 | B12: =-B$7 -> 1073.643246 | C12: =E11*B$5 -> 832.332042 | D12: =B12-C12 -> 241.311204 | E12: =E11-D12 -> 199518.3789
A13: 3 | B13: 1073.643246 | C13: 831.3265787 | D13: 242.3166673 | E13: 199276.0622
A14: 4 | B14: 1073.643246 | C14: =E13*B$5 -> 830.3169259 | D14: 243.3263201 | E14: 199032.7359
A15: 5 | B15: 1073.643246 | C15: =E14*B$5 -> 829.3030662 | D15: 244.3401798 | E15: 198788.3957
A16: 6 | B16: 1073.643246 | C16: 828.2849822 | D16: 245.3582639 | E16: 198543.0375
A17: 7 | B17: 1073.643246 | C17: 827.2626561 | D17: 246.38059 | E17: 198296.6569
A18: 8 | B18: 1073.643246 | C18: 826.2360703 | D18: 247.4071758 | E18: 198049.2497
A19: 9 | B19: 1073.643246 | C19: 825.205207 | D19: 248.438039 | E19: 197800.8116
A20: 10 | B20: 1073.643246 | C20: 824.1700485 | D20: 249.4731975 | E20: 197551.3384
A21: 11 | B21: 1073.643246 | C21: 823.1305769 | D21: 250.5126691 | E21: 197300.8258
A22: 12 | B22: 1073.643246 | C22: 822.0867741 | D22: 251.5564719 | E22: 197049.2693
A23: 13 | B23: 1073.643246 | C23: 821.0386221 | D23: 252.6046239 | E23: 196796.6647
A24: 14 | B24: 1073.643246 | C24: 819.9861029 | D24: 253.6571432 | E24: 196543.0075
A25: 15 | B25: 1073.643246 | C25: 818.9291981 | D25: 254.7140479 | E25: 196288.2935
A26: 16 | B26: 1073.643246 | C26: 817.8678896 | D26: 255.7753565 | E26: 196032.5181
A27: 17 | B27: 1073.643246 | C27: 816.8021589 | D27: 256.8410871 | E27: 195775.6771
A28: 18 | B28: 1073.643246 | C28: 815.7319877 | D28: 257.9112583 | E28: 195517.7658
A29: 19 | B29: 1073.643246 | C29: 814.6573575 | D29: 258.9858886 | E29: 195258.7799
A30: 20 | B30: 1073.643246 | C30: 813.5782496 | D30: 260.0649964 | E30: 194998.7149
A31: 21 | B31: 1073.643246 | C31: 812.4946454 | D31: 261.1486006 | E31: 194737.5663
A32: 22 | B32: 1073.643246 | C32: 811.4065263 | D32: 262.2367197 | E32: 194475.3296
A33: 23 | B33: 1073.643246 | C33: 810.3138733 | D33: 263.3293727 | E33: 194212.0002
A34: 24 | B34: 1073.643246 | C34: 809.2166676 | D34: 264.4265785 | E34: 193947.5736
A35: 25 | B35: 1073.643246 | C35: 808.1148901 | D35: 265.5283559 | E35: 193682.0453
A36: 26 | B36: 1073.643246 | C36: 807.008522 | D36: 266.634724 | E36: 193415.4106
A37: 27 | B37: 1073.643246 | C37: 805.897544 | D37: 267.745702 | E37: 193147.6649
A38: 28 | B38: 1073.643246 | C38: 804.7819369 | D38: 268.8613091 | E38: 192878.8035
A39: 29 | B39: 1073.643246 | C39: 803.6616814 | D39: 269.9815646 | E39: 192608.822
A40: 30 | B40: 1073.643246 | C40: 802.5367582 | D40: 271.1064878 | E40: 192337.7155
A41: 31 | B41: 1073.643246 | C41: 801.4071479 | D41: 272.2360981 | E41: 192065.4794
A42: 32 | B42: 1073.643246 | C42: 800.2728308 | D42: 273.3704152 | E42: 191792.109
A43: 33 | B43: 1073.643246 | C43: 799.1337874 | D43: 274.5094586 | E43: 191517.5995
A44: 34 | B44: 1073.643246 | C44: 797.989998 | D44: 275.653248 | E44: 191241.9463
A45: 35 | B45: 1073.643246 | C45: 796.8414428 | D45: 276.8018032 | E45: 190965.1445
A46: 36 | B46: 1073.643246 | C46: 795.688102 | D46: 277.9551441 | E46: 190687.1893
A47: 37 | B47: 1073.643246 | C47: 794.5299555 | D47: 279.1132905 | E47: 190408.076
A48: 38 | B48: 1073.643246 | C48: 793.3669835 | D48: 280.2762625 | E48: 190127.7998
A49: 39 | B49: 1073.643246 | C49: 792.1991657 | D49: 281.4440803 | E49: 189846.3557
A50: 40 | B50: 1073.643246 | C50: 791.026482 | D50: 282.616764 | E50: 189563.7389
A51: 41 | B51: 1073.643246 | C51: 789.8489122 | D51: 283.7943338 | E51: 189279.9446
A52: 42 | B52: 1073.643246 | C52: 788.6664358 | D52: 284.9768102 | E52: 188994.9678
A53: 43 | B53: 1073.643246 | C53: 787.4790324 | D53: 286.1642136 | E53: 188708.8036
A54: 44 | B54: 1073.643246 | C54: 786.2866815 | D54: 287.3565645 | E54: 188421.447
A55: 45 | B55: 1073.643246 | C55: 785.0893625 | D55: 288.5538835 | E55: 188132.8931
A56: 46 | B56: 1073.643246 | C56: 783.8870547 | D56: 289.7561914 | E56: 187843.1369
A57: 47 | B57: 1073.643246 | C57: 782.6797372 | D57: 290.9635088 | E57: 187552.1734
A58: 48 | B58: 1073.643246 | C58: 781.4673893 | D58: 292.1758568 | E58: 187259.9976
A59: 49 | B59: 1073.643246 | C59: 780.2499899 | D59: 293.3932562 | E59: 186966.6043
A60: 50 | B60: 1073.643246 | C60: 779.027518 | D60: 294.6157281 | E60: 186671.9886
A61: 51 | B61: 1073.643246 | C61: 777.7999524 | D61: 295.8432936 | E61: 186376.1453
A62: 52 | B62: 1073.643246 | C62: 776.567272 | D62: 297.075974 | E62: 186079.0693
A63: 53 | B63: 1073.643246 | C63: 775.3294555 | D63: 298.3137906 | E63: 185780.7555
A64: 54 | B64: 1073.643246 | C64: 774.0864813 | D64: 299.5567647 | E64: 185481.1988
A65: 55 | B65: 1073.643246 | C65: 772.8383282 | D65: 300.8049179 | E65: 185180.3938
A66: 56 | B66: 1073.643246 | C66: 771.5849743 | D66: 302.0582717 | E66: 184878.3356
A67: 57 | B67: 1073.643246 | C67: 770.3263982 | D67: 303.3168478 | E67: 184575.0187
A68: 58 | B68: 1073.643246 | C68: 769.062578 | D68: 304.580668 | E68: 184270.4381
A69: 59 | B69: 1073.643246 | C69: 767.7934919 | D69: 305.8497541 | E69: 183964.5883
A70: 60 | B70: 1073.643246 | C70: 766.5191179 | D70: 307.1241281 | E70: 183657.4642
A71: 61 | B71: 1073.643246 | C71: 765.239434 | D71: 308.403812 | E71: 183349.0604
A72: 62 | B72: 1073.643246 | C72: 763.9544182 | D72: 309.6888279 | E72: 183039.3715
A73: 63 | B73: 1073.643246 | C73: 762.664048 | D73: 310.979198 | E73: 182728.3923
A74: 64 | B74: 1073.643246 | C74: 761.3683014 | D74: 312.2749446 | E74: 182416.1174
A75: 65 | B75: 1073.643246 | C75: 760.0671558 | D75: 313.5760902 | E75: 182102.5413
A76: 66 | B76: =-B$7 -> 1073.643246 | C76: 758.7605887 | D76: =B76-C76 -> 314.8826573 | E76: =E75-D76 -> 181787.6586
A77: 67 | B77: 1073.643246 | C77: 757.4485777 | D77: 316.1946684 | E77: 181471.464
A78: 68 | B78: 1073.643246 | C78: 756.1310999 | D78: 317.5121461 | E78: 181153.9518
A79: 69 | B79: 1073.643246 | C79: =E78*B$5 -> 754.8081326 | D79: 318.8351134 | E79: 180835.1167
A80: 70 | B80: 1073.643246 | C80: 753.479653 | D80: 320.1635931 | E80: 180514.9531
A81: 71 | B81: 1073.643246 | C81: 752.145638 | D81: 321.497608 | E81: 180193.4555
A82: 72 | B82: 1073.643246 | C82: 750.8060646 | D82: 322.8371814 | E82: 179870.6183
A83: 73 | B83: 1073.643246 | C83: 749.4609097 | D83: 324.1823363 | E83: 179546.436
A84: 74 | B84: 1073.643246 | C84: 748.11015 | D84: 325.5330961 | E84: 179220.9029
A85: 75 | B85: 1073.643246 | C85: 746.7537621 | D85: 326.889484 | E85: 178894.0134
A86: 76 | B86: 1073.643246 | C86: 745.3917226 | D86: 328.2515235 | E86: 178565.7619
A87: 77 | B87: 1073.643246 | C87: 744.0240079 | D87: 329.6192381 | E87: 178236.1427
A88: 78 | B88: 1073.643246 | C88: 742.6505944 | D88: 330.9926516 | E88: 177905.15
A89: 79 | B89: 1073.643246 | C89: 741.2714583 | D89: 332.3717877 | E89: 177572.7782
A90: 80 | B90: 1073.643246 | C90: 739.8865759 | D90: 333.7566701 | E90: 177239.0215
A91: 81 | B91: 1073.643246 | C91: 738.4959231 | D91: 335.1473229 | E91: 176903.8742
A92: 82 | B92: 1073.643246 | C92: 737.0994759 | D92: 336.5437701 | E92: 176567.3304
A93: 83 | B93: 1073.643246 | C93: 735.6972102 | D93: 337.9460358 | E93: 176229.3844
A94: 84 | B94: 1073.643246 | C94: 734.2891017 | D94: 339.3541443 | E94: 175890.0303
A95: 85 | B95: 1073.643246 | C95: 732.8751261 | D95: 340.7681199 | E95: 175549.2621
A96: 86 | B96: 1073.643246 | C96: 731.455259 | D96: 342.1879871 | E96: 175207.0742
A97: 87 | B97: 1073.643246 | C97: 730.0294757 | D97: 343.6137703 | E97: 174863.4604
A98: 88 | B98: 1073.643246 | C98: 728.5977516 | D98: 345.0454944 | E98: 174518.4149
A99: 89 | B99: 1073.643246 | C99: 727.1600621 | D99: 346.483184 | E99: 174171.9317
A100: 90 | B100: 1073.643246 | C100: 725.7163821 | D100: 347.9268639 | E100: 173824.0048
A101: 91 | B101: 1073.643246 | C101: 724.2666869 | D101: 349.3765592 | E101: 173474.6283
A102: 92 | B102: 1073.643246 | C102: 722.8109512 | D102: 350.8322948 | E102: 173123.796
A103: 93 | B103: 1073.643246 | C103: 721.34915 | D103: 352.294096 | E103: 172771.5019
A104: 94 | B104: 1073.643246 | C104: 719.8812579 | D104: 353.7619881 | E104: 172417.7399
A105: 95 | B105: 1073.643246 | C105: 718.4072496 | D105: 355.2359964 | E105: 172062.5039
A106: 96 | B106: 1073.643246 | C106: 716.9270996 | D106: 356.7161464 | E106: 171705.7878
A107: 97 | B107: 1073.643246 | C107: 715.4407824 | D107: 358.2024637 | E107: 171347.5853
A108: 98 | B108: 1073.643246 | C108: 713.9482721 | D108: 359.6949739 | E108: 170987.8903
A109: 99 | B109: 1073.643246 | C109: 712.449543 | D109: 361.193703 | E109: 170626.6966
A110: 100 | B110: 1073.643246 | C110: 710.9445693 | D110: 362.6986767 | E110: 170263.998
A111: 101 | B111: 1073.643246 | C111: 709.4333248 | D111: 364.2099212 | E111: 169899.788
A112: 102 | B112: 1073.643246 | C112: 707.9157835 | D112: 365.7274626 | E112: 169534.0606
A113: 103 | B113: 1073.643246 | C113: 706.391919 | D113: 367.251327 | E113: 169166.8092
A114: 104 | B114: 1073.643246 | C114: 704.8617052 | D114: 368.7815409 | E114: 168798.0277
A115: 105 | B115: 1073.643246 | C115: 703.3251154 | D115: 370.3181306 | E115: 168427.7096
A116: 106 | B116: 1073.643246 | C116: 701.7821232 | D116: 371.8611228 | E116: 168055.8484
A117: 107 | B117: 1073.643246 | C117: 700.2327019 | D117: 373.4105442 | E117: 167682.4379
A118: 108 | B118: 1073.643246 | C118: 698.6768246 | D118: 374.9664214 | E118: 167307.4715
A119: 109 | B119: 1073.643246 | C119: 697.1144645 | D119: 376.5287815 | E119: 166930.9427
A120: 110 | B120: 1073.643246 | C120: 695.5455946 | D120: 378.0976514 | E120: 166552.845
A121: 111 | B121: 1073.643246 | C121: 693.9701877 | D121: 379.6730583 | E121: 166173.172
A122: 112 | B122: 1073.643246 | C122: 692.3882166 | D122: 381.2550294 | E122: 165791.917
A123: 113 | B123: 1073.643246 | C123: 690.799654 | D123: 382.843592 | E123: 165409.0734
A124: 114 | B124: 1073.643246 | C124: 689.2044724 | D124: 384.4387737 | E124: 165024.6346
A125: 115 | B125: 1073.643246 | C125: 687.6026441 | D125: 386.0406019 | E125: 164638.594
A126: 116 | B126: 1073.643246 | C126: 685.9941416 | D126: 387.6491044 | E126: 164250.9449
A127: 117 | B127: 1073.643246 | C127: 684.378937 | D127: 389.264309 | E127: 163861.6806
A128: 118 | B128: 1073.643246 | C128: 682.7570024 | D128: 390.8862436 | E128: 163470.7943
A129: 119 | B129: 1073.643246 | C129: 681.1283097 | D129: 392.5149363 | E129: 163078.2794
A130: 120 | B130: 1073.643246 | C130: 679.4928308 | D130: 394.1504152 | E130: 162684.129
A131: 121 | B131: 1073.643246 | C131: 677.8505374 | D131: 395.7927086 | E131: 162288.3363
A132: 122 | B132: 1073.643246 | C132: 676.2014011 | D132: 397.4418449 | E132: 161890.8944
A133: 123 | B133: 1073.643246 | C133: 674.5453935 | D133: 399.0978526 | E133: 161491.7966
A134: 124 | B134: 1073.643246 | C134: 672.8824857 | D134: 400.7607603 | E134: 161091.0358
A135: 125 | B135: 1073.643246 | C135: 671.2126492 | D135: 402.4305968 | E135: 160688.6052
A136: 126 | B136: 1073.643246 | C136: 669.5358551 | D136: 404.1073909 | E136: 160284.4978
A137: 127 | B137: 1073.643246 | C137: 667.8520743 | D137: 405.7911717 | E137: 159878.7067
A138: 128 | B138: 1073.643246 | C138: 666.1612777 | D138: 407.4819683 | E138: 159471.2247
A139: 129 | B139: 1073.643246 | C139: 664.4634362 | D139: 409.1798098 | E139: 159062.0449
A140: 130 | B140: =-B$7 -> 1073.643246 | C140: 662.7585203 | D140: =B140-C140 -> 410.8847257 | E140: =E139-D140 -> 158651.1602
A141: 131 | B141: 1073.643246 | C141: 661.0465006 | D141: 412.5967454 | E141: 158238.5634
A142: 132 | B142: 1073.643246 | C142: 659.3273475 | D142: 414.3158985 | E142: 157824.2475
A143: 133 | B143: 1073.643246 | C143: =E142*B$5 -> 657.6010313 | D143: 416.0422147 | E143: 157408.2053
A144: 134 | B144: 1073.643246 | C144: 655.8675221 | D144: 417.775724 | E144: 156990.4296
A145: 135 | B145: 1073.643246 | C145: 654.1267899 | D145: 419.5164561 | E145: 156570.9131
A146: 136 | B146: 1073.643246 | C146: 652.3788046 | D146: 421.2644414 | E146: 156149.6487
A147: 137 | B147: 1073.643246 | C147: 650.6235361 | D147: 423.0197099 | E147: 155726.629
A148: 138 | B148: 1073.643246 | C148: 648.860954 | D148: 424.782292 | E148: 155301.8467
A149: 139 | B149: 1073.643246 | C149: 647.0910278 | D149: 426.5522182 | E149: 154875.2945
A150: 140 | B150: 1073.643246 | C150: 645.3137269 | D150: 428.3295191 | E150: 154446.9649
A151: 141 | B151: 1073.643246 | C151: 643.5290206 | D151: 430.1142255 | E151: 154016.8507
A152: 142 | B152: 1073.643246 | C152: 641.736878 | D152: 431.9063681 | E152: 153584.9443
A153: 143 | B153: 1073.643246 | C153: 639.9372681 | D153: 433.7059779 | E153: 153151.2384
A154: 144 | B154: 1073.643246 | C154: 638.1301598 | D154: 435.5130862 | E154: 152715.7253
A155: 145 | B155: 1073.643246 | C155: 636.315522 | D155: 437.327724 | E155: 152278.3976
A156: 146 | B156: 1073.643246 | C156: 634.4933231 | D156: 439.1499229 | E156: 151839.2476
A157: 147 | B157: 1073.643246 | C157: 632.6635318 | D157: 440.9797142 | E157: 151398.2679
A158: 148 | B158: 1073.643246 | C158: 630.8261163 | D158: 442.8171297 | E158: 150955.4508
A159: 149 | B159: 1073.643246 | C159: 628.9810449 | D159: 444.6622011 | E159: 150510.7886
A160: 150 | B160: 1073.643246 | C160: 627.1282858 | D160: 446.5149603 | E160: 150064.2736
A161: 151 | B161: 1073.643246 | C161: 625.2678068 | D161: 448.3754393 | E161: 149615.8982
A162: 152 | B162: 1073.643246 | C162: 623.3995758 | D162: 450.2436702 | E162: 149165.6545
A163: 153 | B163: 1073.643246 | C163: 621.5235605 | D163: 452.1196855 | E163: 148713.5348
A164: 154 | B164: 1073.643246 | C164: 619.6397285 | D164: 454.0035176 | E164: 148259.5313
A165: 155 | B165: 1073.643246 | C165: 617.7480471 | D165: 455.8951989 | E165: 147803.6361
A166: 156 | B166: 1073.643246 | C166: 615.8484838 | D166: 457.7947622 | E166: 147345.8414
A167: 157 | B167: 1073.643246 | C167: 613.9410056 | D167: 459.7022404 | E167: 146886.1391
A168: 158 | B168: 1073.643246 | C168: 612.0255796 | D168: 461.6176664 | E168: 146424.5214
A169: 159 | B169: 1073.643246 | C169: 610.1021727 | D169: 463.5410733 | E169: 145960.9804
A170: 160 | B170: 1073.643246 | C170: 608.1707515 | D170: 465.4724945 | E170: 145495.5079
A171: 161 | B171: 1073.643246 | C171: 606.2312828 | D171: 467.4119632 | E171: 145028.0959
A172: 162 | B172: 1073.643246 | C172: 604.283733 | D172: 469.3595131 | E172: 144558.7364
A173: 163 | B173: 1073.643246 | C173: 602.3280683 | D173: 471.3151777 | E173: 144087.4212
A174: 164 | B174: 1073.643246 | C174: 600.3642551 | D174: 473.2789909 | E174: 143614.1422
A175: 165 | B175: 1073.643246 | C175: 598.3922593 | D175: 475.2509867 | E175: 143138.8912
A176: 166 | B176: 1073.643246 | C176: 596.4120469 | D176: 477.2311992 | E176: 142661.66
A177: 167 | B177: 1073.643246 | C177: 594.4235835 | D177: 479.2196625 | E177: 142182.4404
A178: 168 | B178: 1073.643246 | C178: 592.4268349 | D178: 481.2164111 | E178: 141701.224
A179: 169 | B179: 1073.643246 | C179: 590.4217666 | D179: 483.2214795 | E179: 141218.0025
A180: 170 | B180: 1073.643246 | C180: 588.4083437 | D180: 485.2349023 | E180: 140732.7676
A181: 171 | B181: 1073.643246 | C181: 586.3865316 | D181: 487.2567144 | E181: 140245.5109
A182: 172 | B182: 1073.643246 | C182: 584.3562953 | D182: 489.2869507 | E182: 139756.2239
A183: 173 | B183: 1073.643246 | C183: 582.3175997 | D183: 491.3256463 | E183: 139264.8983
A184: 174 | B184: 1073.643246 | C184: 580.2704095 | D184: 493.3728365 | E184: 138771.5254
A185: 175 | B185: 1073.643246 | C185: 578.2146893 | D185: 495.4285567 | E185: 138276.0969
A186: 176 | B186: 1073.643246 | C186: 576.1504037 | D186: 497.4928423 | E186: 137778.604
A187: 177 | B187: 1073.643246 | C187: 574.0775168 | D187: 499.5657292 | E187: 137279.0383
A188: 178 | B188: 1073.643246 | C188: 571.995993 | D188: 501.647253 | E188: 136777.3911
A189: 179 | B189: 1073.643246 | C189: 569.9057961 | D189: 503.7374499 | E189: 136273.6536
A190: 180 | B190: 1073.643246 | C190: 567.80689 | D190: 505.836356 | E190: 135767.8173
A191: 181 | B191: 1073.643246 | C191: 565.6992386 | D191: 507.9440075 | E191: 135259.8732
A192: 182 | B192: 1073.643246 | C192: 563.5828052 | D192: 510.0604408 | E192: 134749.8128
A193: 183 | B193: 1073.643246 | C193: 561.4575534 | D193: 512.1856927 | E193: 134237.6271
A194: 184 | B194: 1073.643246 | C194: 559.3234463 | D194: 514.3197997 | E194: 133723.3073
A195: 185 | B195: 1073.643246 | C195: 557.1804471 | D195: 516.4627989 | E195: 133206.8445
A196: 186 | B196: 1073.643246 | C196: 555.0285188 | D196: 518.6147272 | E196: 132688.2298
A197: 187 | B197: 1073.643246 | C197: 552.8676241 | D197: 520.7756219 | E197: 132167.4542
A198: 188 | B198: 1073.643246 | C198: 550.6977257 | D198: 522.9455203 | E198: 131644.5086
A199: 189 | B199: 1073.643246 | C199: 548.518786 | D199: 525.12446 | E199: 131119.3842
A200: 190 | B200: 1073.643246 | C200: 546.3307674 | D200: 527.3124786 | E200: 130592.0717
A201: 191 | B201: 1073.643246 | C201: 544.1336321 | D201: 529.5096139 | E201: 130062.5621
... 169 more rows

Sheet HowLong
A1: How long to pay off your credit Card if you pay only the minimum PMT required?
A2: Balance = | B2: 7500
A3: APR = | B3: 0.18
A4: Periods per year | B4: 12
A5: Minimum Monthly PMT = | B5: -125
A6: nper = NPER function =
A7: Years = nper/12

Sheet HowLong(an)
A1: How long to pay off your credit Card if you pay only the minimum PMT required?
A2: Balance = | B2: 7500
A3: APR = | B3: 0.18
A4: Periods per year | B4: 12
A5: Minimum Monthly PMT = | B5: -125
A6: nper = NPER function = | B6: =NPER(B3/B4,B5,B2) -> 154.6541086
A7: Years = nper/12 | B7: =B6/B4 -> 12.88784238

Sheet FV Annuity End
A1: Savings plan: If I put $50 (PMT) in the bank at the end of each month for 50 years, how much will I have when I retire? What is the future value? How much can you withdraw each month if you live 35 more years?
A2: Periodic Payment | B2: 50 | C2: pmt | D2: Year | E2: 35 | G2: Total put in
A3: Years | B3: 50 | D3: Annual rate | E3: 0.05
A4: # Compounding Periods per Year | B4: 12 | D4: Periods /year | E4: 12
A5: Annual Interest Rate | B5: 0.1 | D5: Pv
A6: Period Rate | C6: rate | D6: PMT
A7: Total Periods | C7: nper | D7: Total Withdrawn
A8: Future Value | C8: fv | D8: =FV(rate , nper , -pmt)
A10: Check: | B10: =B2*((1+B5/B4)^(B3*B4)-1)/(B5/B4) -> 866219.5398 | C10: =ShowFormula -> =B2*((1+B5/B4)^(B3*B4)-1)/(B5/B4)
A13: If I want to be a millionaire, how much do I have to put in the bank at the end of each month. What is the PMT?
A14: Future Value | B14: 1000000 | C14: fv
A15: Years | B15: 35
A16: # Compounding Periods per Year | B16: 12
A17: Annual Interest Rate | B17: 0.1
A18: Period Rate | C18: rate
A19: Total Periods | C19: nper
A20: Periodic Payment | C20: pmt | D20: =PMT(rate , nper , , FV)
A22: Check: | B22: =B14/(((1+B17/B16)^(B15*B16)-1)/(B17/B16)) -> 263.3909228 | C22: =ShowFormula -> =B14/(((1+B17/B16)^(B15*B16)-1)/(B17/B16))

Sheet FV Annuity End (an)
A1: Savings plan: If I put $50 (PMT) in the bank at the end of each month for 50 years, how much will I have when I retire? What is the future value? How much can you withdraw each month if you live 35 more years?
A2: Periodic Payment | B2: 50 | C2: pmt | D2: Year | E2: 35 | G2: Total put in | H2: =B2*B3*B4 -> 30000
A3: Years | B3: 50 | D3: Annual rate | E3: 0.05
A4: # Compounding Periods per Year | B4: 12 | D4: Periods /year | E4: 12
A5: Annual Interest Rate | B5: 0.1 | D5: Pv | E5: =-B8 -> -866219.5398
A6: Period Rate | B6: =B5/B4 -> 0.008333333333 | C6: rate | D6: PMT | E6: =PMT(E3/E4,E2*E4,E5,,1) -> 4353.563402
A7: Total Periods | B7: =B4*B3 -> 600 | C7: nper | D7: Total Withdrawn | E7: =E6*E2*E4 -> 1828496.629
A8: Future Value | B8: =FV(B6,B7,-B2) -> 866219.5398 | C8: fv | D8: =FV(rate , nper , -pmt)
A10: Check: | B10: =B2*((1+B5/B4)^(B3*B4)-1)/(B5/B4) -> 866219.5398 | C10: =ShowFormula -> =B2*((1+B5/B4)^(B3*B4)-1)/(B5/B4)
A13: If I want to be a millionaire, how much do I have to put in the bank at the end of each month. What is the PMT?
A14: Future Value | B14: 1000000 | C14: fv
A15: Years | B15: 35
A16: # Compounding Periods per Year | B16: 12
A17: Annual Interest Rate | B17: 0.1
A18: Period Rate | B18: =B17/B16 -> 0.008333333333 | C18: rate
A19: Total Periods | B19: =B16*B15 -> 420 | C19: nper
A20: Periodic Payment | B20: =PMT(B18,B19,,B14) -> -263.3909228 | C20: pmt | D20: =PMT(rate , nper , , FV)
A22: Check: | B22: =B14/(((1+B17/B16)^(B15*B16)-1)/(B17/B16)) -> 263.3909228 | C22: =ShowFormula -> =B14/(((1+B17/B16)^(B15*B16)-1)/(B17/B16))

Sheet HW ==>>

Sheet (1)
A1: Calculate the PMT for the three examples below.
A3: PMT function from Borrower point of view
A4: Price of Car | B4: 25000
A5: Down Payment | B5: 2500
A6: Loan Amount
A7: Annual Interest Rate | B7: 0.0375
A8: Periods per Year | B8: 12
A9: Monthly Interest Rate
A10: Years for Loan | B10: 6
A11: Total Months
A12: Type | B12: End
A13: PMT end of period
A15: PMT function from Lender point of view
A16: Price of Car | B16: 25000
A17: Down Payment | B17: 2500
A18: Loan Amount
A19: Annual Interest Rate | B19: 0.0375
A20: Periods per Year | B20: 12
A21: Monthly Interest Rate
A22: Years for Loan | B22: 6
A23: Total Months
A24: Type | B24: End
A25: PMT end of period
A28: PMT function with Balloon payment at end
A29: Price of Car | B29: 50000
A30: Down Payment | B30: 5000
A31: Loan Amount
A32: Balloon Payment | B32: -5000
A33: Monthly Payment
A34: Annual Interest Rate | B34: 0.0525
A35: Monthly Interest Rate
A36: Years for Loan | B36: 3
A37: Total Months
A38: Periods per Year | B38: 12

Sheet (1an)
A1: Calculate the PMT for the three examples below.
A3: PMT function from Borrower point of view
A4: Price of Car | B4: 25000
A5: Down Payment | B5: 2500
A6: Loan Amount | B6: =B4-B5 -> 22500
A7: Annual Interest Rate | B7: 0.0375
A8: Periods per Year | B8: 12
A9: Monthly Interest Rate | B9: =B7/B8 -> 0.003125
A10: Years for Loan | B10: 6
A11: Total Months | B11: =B10*B8 -> 72
A12: Type | B12: End
A13: PMT end of period | B13: =PMT(B9,B11,B6) -> -349.4594752
A15: PMT function from Lender point of view
A16: Price of Car | B16: 25000
A17: Down Payment | B17: 2500
A18: Loan Amount | B18: =B16-B17 -> 22500
A19: Annual Interest Rate | B19: 0.0375
A20: Periods per Year | B20: 12
A21: Monthly Interest Rate | B21: =B19/B20 -> 0.003125
A22: Years for Loan | B22: 6
A23: Total Months | B23: =B22*B20 -> 72
A24: Type | B24: End
A25: PMT end of period | B25: =PMT(B21,B23,-B18) -> 349.4594752
A28: PMT function with Balloon payment at end
A29: Price of Car | B29: 37500
A30: Down Payment | B30: 1500
A31: Balloon Payment | B31: -5000
A32: Loan Amount | B32: =B29-B30 -> 36000
A33: Annual Interest Rate | B33: 0.06
A34: Periods per Year | B34: 12
A35: Monthly Interest Rate | B35: =B33/B34 -> 0.005
A36: Years for Loan | B36: 5
A37: Total Months | B37: =B36*B34 -> 60
A38: Monthly Payment | B38: =PMT(B35,B37,B32,B31) -> -624.3168474

Sheet (2)
A1: Create an amortization table for the loan data below. Then calculate the total interest paid over the life of the loan.
A3: Loan Amount | B3: 375500
A4: Annual Interest Rate | B4: 0.0415
A5: Years for Loan | B5: 30
A6: Periods per Year | B6: 12
A7: Period Interest Rate | B7: =B4/B6 -> 0.003458333333
A8: Total Periods | B8: =B5*B6 -> 360
A9: PMT | B9: =PMT(B7,B8,B3) -> -1825.317977
A10: Total Interest
A11: Total Interest
A13: Periods | B13: PMT | C13: Period Interest | D13: Loan Reduction | E13: Balance

Sheet (2an)
A1: Create an amortization table for the loan data below. Then calculate the total interest paid over the life of the loan.
A3: Loan Amount | B3: 375500
A4: Annual Interest Rate | B4: 0.0415
A5: Years for Loan | B5: 30
A6: Periods per Year | B6: 12
A7: Period Interest Rate | B7: =B4/B6 -> 0.003458333333
A8: Total Periods | B8: =B5*B6 -> 360
A9: PMT | B9: =PMT(B7,B8,B3) -> -1825.317977
A10: Total Interest | B10: =SUM(C15:C374) -> 281614.4717
A11: Total Interest | B11: =CUMIPMT(B7,B8,B3,1,B8,0) -> -281614.4717
A13: Periods | B13: PMT | C13: Period Interest | D13: Loan Reduction | E13: Balance
A14: 0 | E14: =B3 -> 375500
A15: 1 | B15: =-B$9 -> 1825.317977 | C15: =E14*B$7 -> 1298.604167 | D15: =B15-C15 -> 526.7138104 | E15: =E14-D15 -> 374973.2862
A16: 2 | B16: =-B$9 -> 1825.317977 | C16: =E15*B$7 -> 1296.782615 | D16: =B16-C16 -> 528.5353623 | E16: =E15-D16 -> 374444.7508
A17: 3 | B17: 1825.317977 | C17: 1294.954763 | D17: 530.3632138 | E17: 373914.3876
A18: 4 | B18: 1825.317977 | C18: =E17*B$7 -> 1293.12059 | D18: 532.1973866 | E18: 373382.1902
A19: 5 | B19: 1825.317977 | C19: =E18*B$7 -> 1291.280075 | D19: 534.0379025 | E19: 372848.1523
A20: 6 | B20: 1825.317977 | C20: 1289.433193 | D20: 535.8847836 | E20: 372312.2675
A21: 7 | B21: 1825.317977 | C21: 1287.579925 | D21: 537.7380518 | E21: 371774.5295
A22: 8 | B22: 1825.317977 | C22: 1285.720248 | D22: 539.5977292 | E22: 371234.9318
A23: 9 | B23: 1825.317977 | C23: 1283.854139 | D23: 541.4638381 | E23: 370693.4679
A24: 10 | B24: 1825.317977 | C24: 1281.981577 | D24: 543.3364005 | E24: 370150.1315
A25: 11 | B25: 1825.317977 | C25: 1280.102538 | D25: 545.2154389 | E25: 369604.9161
A26: 12 | B26: 1825.317977 | C26: 1278.217001 | D26: 547.1009756 | E26: 369057.8151
A27: 13 | B27: 1825.317977 | C27: 1276.324944 | D27: 548.9930332 | E27: 368508.8221
A28: 14 | B28: 1825.317977 | C28: 1274.426343 | D28: 550.8916341 | E28: 367957.9304
A29: 15 | B29: 1825.317977 | C29: 1272.521176 | D29: 552.796801 | E29: 367405.1336
A30: 16 | B30: 1825.317977 | C30: 1270.60942 | D30: 554.7085566 | E30: 366850.4251
A31: 17 | B31: 1825.317977 | C31: 1268.691053 | D31: 556.6269237 | E31: 366293.7982
A32: 18 | B32: 1825.317977 | C32: 1266.766052 | D32: 558.5519251 | E32: 365735.2462
A33: 19 | B33: 1825.317977 | C33: 1264.834393 | D33: 560.4835838 | E33: 365174.7626
A34: 20 | B34: 1825.317977 | C34: 1262.896054 | D34: 562.4219229 | E34: 364612.3407
A35: 21 | B35: 1825.317977 | C35: 1260.951012 | D35: 564.3669654 | E35: 364047.9738
A36: 22 | B36: 1825.317977 | C36: 1258.999243 | D36: 566.3187345 | E36: 363481.655
A37: 23 | B37: 1825.317977 | C37: 1257.040724 | D37: 568.2772534 | E37: 362913.3778
A38: 24 | B38: 1825.317977 | C38: 1255.075431 | D38: 570.2425456 | E38: 362343.1352
A39: 25 | B39: 1825.317977 | C39: 1253.103343 | D39: 572.2146344 | E39: 361770.9206
A40: 26 | B40: 1825.317977 | C40: 1251.124434 | D40: 574.1935433 | E40: 361196.727
A41: 27 | B41: 1825.317977 | C41: 1249.138681 | D41: 576.179296 | E41: 360620.5478
A42: 28 | B42: 1825.317977 | C42: 1247.146061 | D42: 578.1719161 | E42: 360042.3758
A43: 29 | B43: 1825.317977 | C43: 1245.14655 | D43: 580.1714273 | E43: 359462.2044
A44: 30 | B44: 1825.317977 | C44: 1243.140124 | D44: 582.1778535 | E44: 358880.0266
A45: 31 | B45: 1825.317977 | C45: 1241.126759 | D45: 584.1912186 | E45: 358295.8353
A46: 32 | B46: 1825.317977 | C46: 1239.106431 | D46: 586.2115465 | E46: 357709.6238
A47: 33 | B47: 1825.317977 | C47: 1237.079116 | D47: 588.2388614 | E47: 357121.3849
A48: 34 | B48: 1825.317977 | C48: 1235.04479 | D48: 590.2731875 | E48: 356531.1117
A49: 35 | B49: 1825.317977 | C49: 1233.003428 | D49: 592.314549 | E49: 355938.7972
A50: 36 | B50: 1825.317977 | C50: 1230.955007 | D50: 594.3629701 | E50: 355344.4342
A51: 37 | B51: 1825.317977 | C51: 1228.899502 | D51: 596.4184754 | E51: 354748.0157
A52: 38 | B52: 1825.317977 | C52: 1226.836888 | D52: 598.4810893 | E52: 354149.5347
A53: 39 | B53: 1825.317977 | C53: 1224.767141 | D53: 600.5508364 | E53: 353548.9838
A54: 40 | B54: 1825.317977 | C54: 1222.690236 | D54: 602.6277413 | E54: 352946.3561
A55: 41 | B55: 1825.317977 | C55: 1220.606148 | D55: 604.7118289 | E55: 352341.6443
A56: 42 | B56: 1825.317977 | C56: 1218.514853 | D56: 606.803124 | E56: 351734.8411
A57: 43 | B57: 1825.317977 | C57: 1216.416326 | D57: 608.9016515 | E57: 351125.9395
A58: 44 | B58: 1825.317977 | C58: 1214.310541 | D58: 611.0074364 | E58: 350514.932
A59: 45 | B59: 1825.317977 | C59: 1212.197473 | D59: 613.1205038 | E59: 349901.8115
A60: 46 | B60: 1825.317977 | C60: 1210.077098 | D60: 615.2408788 | E60: 349286.5707
A61: 47 | B61: 1825.317977 | C61: 1207.94939 | D61: 617.3685869 | E61: 348669.2021
A62: 48 | B62: 1825.317977 | C62: 1205.814324 | D62: 619.5036532 | E62: 348049.6984
A63: 49 | B63: 1825.317977 | C63: 1203.671874 | D63: 621.6461034 | E63: 347428.0523
A64: 50 | B64: 1825.317977 | C64: 1201.522014 | D64: 623.7959628 | E64: 346804.2564
A65: 51 | B65: 1825.317977 | C65: 1199.36472 | D65: 625.9532572 | E65: 346178.3031
A66: 52 | B66: 1825.317977 | C66: 1197.199965 | D66: 628.1180122 | E66: 345550.1851
A67: 53 | B67: 1825.317977 | C67: 1195.027723 | D67: 630.2902537 | E67: 344919.8948
A68: 54 | B68: 1825.317977 | C68: 1192.84797 | D68: 632.4700074 | E68: 344287.4248
A69: 55 | B69: 1825.317977 | C69: 1190.660678 | D69: 634.6572996 | E69: 343652.7675
A70: 56 | B70: 1825.317977 | C70: 1188.465821 | D70: 636.852156 | E70: 343015.9154
A71: 57 | B71: 1825.317977 | C71: 1186.263374 | D71: 639.0546031 | E71: 342376.8608
A72: 58 | B72: 1825.317977 | C72: 1184.05331 | D72: 641.2646669 | E72: 341735.5961
A73: 59 | B73: 1825.317977 | C73: 1181.835603 | D73: 643.4823739 | E73: 341092.1137
A74: 60 | B74: 1825.317977 | C74: 1179.610227 | D74: 645.7077504 | E74: 340446.406
A75: 61 | B75: 1825.317977 | C75: 1177.377154 | D75: 647.9408231 | E75: 339798.4651
A76: 62 | B76: 1825.317977 | C76: 1175.136359 | D76: 650.1816184 | E76: 339148.2835
A77: 63 | B77: 1825.317977 | C77: 1172.887814 | D77: 652.4301632 | E77: 338495.8534
A78: 64 | B78: 1825.317977 | C78: 1170.631493 | D78: 654.6864842 | E78: 337841.1669
A79: 65 | B79: 1825.317977 | C79: 1168.367369 | D79: 656.9506083 | E79: 337184.2163
A80: 66 | B80: =-B$9 -> 1825.317977 | C80: 1166.095415 | D80: =B80-C80 -> 659.2225624 | E80: =E79-D80 -> 336524.9937
A81: 67 | B81: 1825.317977 | C81: 1163.815603 | D81: 661.5023738 | E81: 335863.4913
A82: 68 | B82: 1825.317977 | C82: 1161.527908 | D82: 663.7900695 | E82: 335199.7013
A83: 69 | B83: 1825.317977 | C83: =E82*B$7 -> 1159.2323 | D83: 666.0856768 | E83: 334533.6156
A84: 70 | B84: 1825.317977 | C84: 1156.928754 | D84: 668.3892231 | E84: 333865.2264
A85: 71 | B85: 1825.317977 | C85: 1154.617241 | D85: 670.7007359 | E85: 333194.5256
A86: 72 | B86: 1825.317977 | C86: 1152.297734 | D86: 673.0202426 | E86: 332521.5054
A87: 73 | B87: 1825.317977 | C87: 1149.970206 | D87: 675.3477709 | E87: 331846.1576
A88: 74 | B88: 1825.317977 | C88: 1147.634628 | D88: 677.6833486 | E88: 331168.4743
A89: 75 | B89: 1825.317977 | C89: 1145.290974 | D89: 680.0270035 | E89: 330488.4473
A90: 76 | B90: 1825.317977 | C90: 1142.939213 | D90: 682.3787636 | E90: 329806.0685
A91: 77 | B91: 1825.317977 | C91: 1140.57932 | D91: 684.7386568 | E91: 329121.3298
A92: 78 | B92: 1825.317977 | C92: 1138.211266 | D92: 687.1067113 | E92: 328434.2231
A93: 79 | B93: 1825.317977 | C93: 1135.835022 | D93: 689.4829554 | E93: 327744.7402
A94: 80 | B94: 1825.317977 | C94: 1133.45056 | D94: 691.8674173 | E94: 327052.8728
A95: 81 | B95: 1825.317977 | C95: 1131.057852 | D95: 694.2601254 | E95: 326358.6126
A96: 82 | B96: 1825.317977 | C96: 1128.656869 | D96: 696.6611084 | E96: 325661.9515
A97: 83 | B97: 1825.317977 | C97: 1126.247582 | D97: 699.0703947 | E97: 324962.8811
A98: 84 | B98: 1825.317977 | C98: 1123.829964 | D98: 701.4880131 | E98: 324261.3931
A99: 85 | B99: 1825.317977 | C99: 1121.403985 | D99: 703.9139925 | E99: 323557.4791
A100: 86 | B100: 1825.317977 | C100: 1118.969615 | D100: 706.3483617 | E100: 322851.1308
A101: 87 | B101: 1825.317977 | C101: 1116.526827 | D101: 708.7911498 | E101: 322142.3396
A102: 88 | B102: 1825.317977 | C102: 1114.075591 | D102: 711.2423859 | E102: 321431.0972
A103: 89 | B103: 1825.317977 | C103: 1111.615878 | D103: 713.7020991 | E103: 320717.3951
A104: 90 | B104: 1825.317977 | C104: 1109.147658 | D104: 716.1703189 | E104: 320001.2248
A105: 91 | B105: 1825.317977 | C105: 1106.670902 | D105: 718.6470746 | E105: 319282.5777
A106: 92 | B106: 1825.317977 | C106: 1104.185581 | D106: 721.1323957 | E106: 318561.4453
A107: 93 | B107: 1825.317977 | C107: 1101.691665 | D107: 723.6263119 | E107: 317837.819
A108: 94 | B108: 1825.317977 | C108: 1099.189124 | D108: 726.1288529 | E108: 317111.6902
A109: 95 | B109: 1825.317977 | C109: 1096.677929 | D109: 728.6400485 | E109: 316383.0501
A110: 96 | B110: 1825.317977 | C110: 1094.158048 | D110: 731.1599287 | E110: 315651.8902
A111: 97 | B111: 1825.317977 | C111: 1091.629454 | D111: 733.6885235 | E111: 314918.2017
A112: 98 | B112: 1825.317977 | C112: 1089.092114 | D112: 736.2258629 | E112: 314181.9758
A113: 99 | B113: 1825.317977 | C113: 1086.546 | D113: 738.7719774 | E113: 313443.2038
A114: 100 | B114: 1825.317977 | C114: 1083.99108 | D114: 741.3268971 | E114: 312701.8769
A115: 101 | B115: 1825.317977 | C115: 1081.427324 | D115: 743.8906526 | E115: 311957.9863
A116: 102 | B116: 1825.317977 | C116: 1078.854703 | D116: 746.4632745 | E116: 311211.523
A117: 103 | B117: 1825.317977 | C117: 1076.273184 | D117: 749.0447933 | E117: 310462.4782
A118: 104 | B118: 1825.317977 | C118: 1073.682737 | D118: 751.6352399 | E118: 309710.843
A119: 105 | B119: 1825.317977 | C119: 1071.083332 | D119: 754.2346451 | E119: 308956.6083
A120: 106 | B120: 1825.317977 | C120: 1068.474937 | D120: 756.8430399 | E120: 308199.7653
A121: 107 | B121: 1825.317977 | C121: 1065.857522 | D121: 759.4604554 | E121: 307440.3048
A122: 108 | B122: 1825.317977 | C122: 1063.231054 | D122: 762.0869228 | E122: 306678.2179
A123: 109 | B123: 1825.317977 | C123: 1060.595504 | D123: 764.7224734 | E123: 305913.4954
A124: 110 | B124: 1825.317977 | C124: 1057.950838 | D124: 767.3671387 | E124: 305146.1283
A125: 111 | B125: 1825.317977 | C125: 1055.297027 | D125: 770.02095 | E125: 304376.1074
A126: 112 | B126: 1825.317977 | C126: 1052.634038 | D126: 772.6839391 | E126: 303603.4234
A127: 113 | B127: 1825.317977 | C127: 1049.961839 | D127: 775.3561378 | E127: 302828.0673
A128: 114 | B128: 1825.317977 | C128: 1047.280399 | D128: 778.0375777 | E128: 302050.0297
A129: 115 | B129: 1825.317977 | C129: 1044.589686 | D129: 780.728291 | E129: 301269.3014
A130: 116 | B130: 1825.317977 | C130: 1041.889667 | D130: 783.4283097 | E130: 300485.8731
A131: 117 | B131: 1825.317977 | C131: 1039.180311 | D131: 786.1376659 | E131: 299699.7354
A132: 118 | B132: 1825.317977 | C132: 1036.461585 | D132: 788.856392 | E132: 298910.879
A133: 119 | B133: 1825.317977 | C133: 1033.733457 | D133: 791.5845204 | E133: 298119.2945
A134: 120 | B134: 1825.317977 | C134: 1030.995894 | D134: 794.3220835 | E134: 297324.9724
A135: 121 | B135: 1825.317977 | C135: 1028.248863 | D135: 797.0691141 | E135: 296527.9033
A136: 122 | B136: 1825.317977 | C136: 1025.492332 | D136: 799.8256447 | E136: 295728.0777
A137: 123 | B137: 1825.317977 | C137: 1022.726269 | D137: 802.5917084 | E137: 294925.486
A138: 124 | B138: 1825.317977 | C138: 1019.950639 | D138: 805.3673381 | E138: 294120.1186
A139: 125 | B139: 1825.317977 | C139: 1017.16541 | D139: 808.1525668 | E139: 293311.9661
A140: 126 | B140: 1825.317977 | C140: 1014.370549 | D140: 810.9474278 | E140: 292501.0186
A141: 127 | B141: 1825.317977 | C141: 1011.566023 | D141: 813.7519543 | E141: 291687.2667
A142: 128 | B142: 1825.317977 | C142: 1008.751797 | D142: 816.5661798 | E142: 290870.7005
A143: 129 | B143: 1825.317977 | C143: 1005.927839 | D143: 819.3901378 | E143: 290051.3104
A144: 130 | B144: =-B$9 -> 1825.317977 | C144: 1003.094115 | D144: =B144-C144 -> 822.223862 | E144: =E143-D144 -> 289229.0865
A145: 131 | B145: 1825.317977 | C145: 1000.250591 | D145: 825.0673862 | E145: 288404.0191
A146: 132 | B146: 1825.317977 | C146: 997.3972328 | D146: 827.9207443 | E146: 287576.0984
A147: 133 | B147: 1825.317977 | C147: =E146*B$7 -> 994.5340069 | D147: 830.7839702 | E147: 286745.3144
A148: 134 | B148: 1825.317977 | C148: 991.660879 | D148: 833.6570981 | E148: 285911.6573
A149: 135 | B149: 1825.317977 | C149: 988.7778148 | D149: 836.5401622 | E149: 285075.1171
A150: 136 | B150: 1825.317977 | C150: 985.8847801 | D150: 839.4331969 | E150: 284235.6839
A151: 137 | B151: 1825.317977 | C151: 982.9817403 | D151: 842.3362368 | E151: 283393.3477
A152: 138 | B152: 1825.317977 | C152: 980.0686608 | D152: 845.2493162 | E152: 282548.0984
A153: 139 | B153: 1825.317977 | C153: 977.1455069 | D153: 848.1724701 | E153: 281699.9259
A154: 140 | B154: 1825.317977 | C154: 974.2122438 | D154: 851.1057332 | E154: 280848.8202
A155: 141 | B155: 1825.317977 | C155: 971.2688365 | D155: 854.0491406 | E155: 279994.771
A156: 142 | B156: 1825.317977 | C156: 968.3152499 | D156: 857.0027272 | E156: 279137.7683
A157: 143 | B157: 1825.317977 | C157: 965.3514488 | D157: 859.9665283 | E157: 278277.8018
A158: 144 | B158: 1825.317977 | C158: 962.3773979 | D158: 862.9405792 | E158: 277414.8612
A159: 145 | B159: 1825.317977 | C159: 959.3930617 | D159: 865.9249154 | E159: 276548.9363
A160: 146 | B160: 1825.317977 | C160: 956.3984047 | D160: 868.9195724 | E160: 275680.0167
A161: 147 | B161: 1825.317977 | C161: 953.3933912 | D161: 871.9245859 | E161: 274808.0921
A162: 148 | B162: 1825.317977 | C162: 950.3779853 | D162: 874.9399917 | E162: 273933.1521
A163: 149 | B163: 1825.317977 | C163: 947.3521512 | D163: 877.9658259 | E163: 273055.1863
A164: 150 | B164: 1825.317977 | C164: 944.3158527 | D164: 881.0021244 | E164: 272174.1842
A165: 151 | B165: 1825.317977 | C165: 941.2690537 | D165: 884.0489234 | E165: 271290.1353
A166: 152 | B166: 1825.317977 | C166: 938.2117178 | D166: 887.1062592 | E166: 270403.029
A167: 153 | B167: 1825.317977 | C167: 935.1438087 | D167: 890.1741684 | E167: 269512.8548
A168: 154 | B168: 1825.317977 | C168: 932.0652897 | D168: 893.2526874 | E168: 268619.6022
A169: 155 | B169: 1825.317977 | C169: 928.9761241 | D169: 896.3418529 | E169: 267723.2603
A170: 156 | B170: 1825.317977 | C170: 925.8762752 | D170: 899.4417018 | E170: 266823.8186
A171: 157 | B171: 1825.317977 | C171: 922.765706 | D171: 902.5522711 | E171: 265921.2663
A172: 158 | B172: 1825.317977 | C172: 919.6443794 | D172: 905.6735977 | E172: 265015.5927
A173: 159 | B173: 1825.317977 | C173: 916.5122582 | D173: 908.8057188 | E173: 264106.787
A174: 160 | B174: 1825.317977 | C174: 913.3693051 | D174: 911.948672 | E174: 263194.8383
A175: 161 | B175: 1825.317977 | C175: 910.2154826 | D175: 915.1024945 | E175: 262279.7359
A176: 162 | B176: 1825.317977 | C176: 907.0507532 | D176: 918.2672239 | E176: 261361.4686
A177: 163 | B177: 1825.317977 | C177: 903.875079 | D177: 921.4428981 | E177: 260440.0257
A178: 164 | B178: 1825.317977 | C178: 900.6884223 | D178: 924.6295547 | E178: 259515.3962
A179: 165 | B179: 1825.317977 | C179: 897.4907451 | D179: 927.827232 | E179: 258587.5689
A180: 166 | B180: 1825.317977 | C180: 894.2820093 | D180: 931.0359678 | E180: 257656.533
A181: 167 | B181: 1825.317977 | C181: 891.0621765 | D181: 934.2558005 | E181: 256722.2772
A182: 168 | B182: 1825.317977 | C182: 887.8312086 | D182: 937.4867685 | E182: 255784.7904
A183: 169 | B183: 1825.317977 | C183: 884.5890668 | D183: 940.7289102 | E183: 254844.0615
A184: 170 | B184: 1825.317977 | C184: 881.3357127 | D184: 943.9822644 | E184: 253900.0792
A185: 171 | B185: 1825.317977 | C185: 878.0711073 | D185: 947.2468697 | E185: 252952.8324
A186: 172 | B186: 1825.317977 | C186: 874.7952119 | D186: 950.5227651 | E186: 252002.3096
A187: 173 | B187: 1825.317977 | C187: 871.5079874 | D187: 953.8099897 | E187: 251048.4996
A188: 174 | B188: 1825.317977 | C188: 868.2093945 | D188: 957.1085826 | E188: 250091.391
A189: 175 | B189: 1825.317977 | C189: 864.899394 | D189: 960.4185831 | E189: 249130.9724
A190: 176 | B190: 1825.317977 | C190: 861.5779464 | D190: 963.7400307 | E190: 248167.2324
A191: 177 | B191: 1825.317977 | C191: 858.2450121 | D191: 967.072965 | E191: 247200.1594
A192: 178 | B192: 1825.317977 | C192: 854.9005514 | D192: 970.4174256 | E192: 246229.742
A193: 179 | B193: 1825.317977 | C193: 851.5445245 | D193: 973.7734526 | E193: 245255.9686
A194: 180 | B194: 1825.317977 | C194: 848.1768913 | D194: 977.1410858 | E194: 244278.8275
A195: 181 | B195: 1825.317977 | C195: 844.7976117 | D195: 980.5203654 | E195: 243298.3071
A196: 182 | B196: 1825.317977 | C196: 841.4066454 | D196: 983.9113316 | E196: 242314.3958
A197: 183 | B197: 1825.317977 | C197: 838.0039521 | D197: 987.314025 | E197: 241327.0818
A198: 184 | B198: 1825.317977 | C198: 834.5894911 | D198: 990.728486 | E198: 240336.3533
A199: 185 | B199: 1825.317977 | C199: 831.1632217 | D199: 994.1547553 | E199: 239342.1985
A200: 186 | B200: 1825.317977 | C200: 827.7251032 | D200: 997.5928739 | E200: 238344.6056
A201: 187 | B201: 1825.317977 | C201: 824.2750945 | D201: 1001.042883 | E201: 237343.5628
A202: 188 | B202: 1825.317977 | C202: 820.8131545 | D202: 1004.504823 | E202: 236339.0579
... 172 more rows

Sheet (3)
A1: If your credit card balance is $5000 and the minimum monthly payment (at end of each month) is $100,
A2: if the Annual Credit Card Rate is 16%, how many years does it take to pay off?

Sheet (3an)
A1: If your credit card balance is $5000 and the minimum monthly payment (at end of each month) is $100,
A2: if the Annual Credit Card Rate is 16%, how many years does it take to pay off?
A4: PV | B4: 5000
A5: PMT | B5: -100
A6: Annual Rate | B6: 0.16
A7: Periods/Year | B7: 12
A8: Period Rate | B8: =B6/B7 -> 0.01333333333
A9: Months to pay off | B9: =NPER(B8,B5,B4) -> 82.94401518
A10: Years | B10: =B9/B7 -> 6.912001265

Sheet (4)
A1: For a 35 year savings plan (at end of each month) that pays a 6% Annual Rate,
A2: how much do you need to deposit each month to have $400,000 in 35 years?

Sheet (4an)
A1: For a 35 year savings plan (at end of each month) that pays a 6% Annual Rate,
A2: how much do you need to deposit each month to have $400,000 in 35 years?
A4: Years | B4: 35
A5: periods/year | B5: 12
A6: Total periods | B6: =B5*B4 -> 420
A7: Annual Rate | B7: 0.06
A8: Period Rate | B8: =B7/B5 -> 0.005
A9: FV | B9: 400000
A10: PMT | B10: =PMT(B8,B6,,B9) -> -280.7588324

Sheet (5)
A1: Play around and calculate your own savings plan (retirement savings).
